Workbook

Sheet grade
A1: buy-ins | B1: =SUMPRODUCT(D:D,E:E)+SUMPRODUCT(K:K,L:L) -> 0 | F1: Saldo inicial | I1: 1000 | K1: Buy-in médio ideal | N1: 4.61
A2: prêmios | B2: =SUM(F:F,M:M) -> 0 | F2: Saldo Atual | I2: =I1+B3 -> 1000 | K2: Número de torneios | N2: =SUM(E:E,L:L) -> 0
A3: saldo | B3: =-B1+B2 -> 0 | K3: Buy-in médio atual | N3: =IFERROR(B1/N2,0) -> 0
A5: Torneio | B5: hora | C5: late | D5: buyin | E5: n | F5: prêmios | G5: Site | I5: Sit & Go | J5: dura | K5: buyin | L5: n | M5: prêmios | N5: Site
A6: Bounty Builder $3.30, $1K Gtd [T] | B6: on-D | C6: on-D | D6: 3.3 | G6: PS | I6: $1.00 [180 Players] | J6: 240 | K6: 1 | N6: PS
A7: Saturday Micro $8K Gtd | B7: 08:00:00 | C7: 08:00:00 | D7: 3.3 | G7: PS | I7: $1.00 [45 Players] | J7: 140 | K7: 1 | N7: PS
A8: Mini Daily Kickoff, $8K Gtd | B8: 08:00:00 | C8: 08:00:00 | D8: 11 | G8: PS | I8: $1.50 [18 Players] | J8: 60 | K8: 1.5 | N8: PS
A9: Big $27, $4K Gtd | B9: 08:00:00 | C9: 08:00:00 | D9: 27 | G9: PS | I9: $1.50 NL Hold'em [9 Players] | J9: 85 | K9: 1.5 | N9: PS
A10: Hot $4.40, $3K Gtd [T] | B10: 08:15:00 | C10: 08:15:00 | D10: 4.4 | G10: PS | I10: $1.50 [9 Players, HYPER] | J10: 22 | K10: 1.5 | N10: PS
A11: Bounty Builder $7.50, $12K Gtd | B11: 08:30:00 | C11: 08:30:00 | D11: 7.5 | G11: PS | I11: $1.50 [9 Players, TURBO] | J11: 48 | K11: 1.5 | N11: PS
A12: Big $44 Sat [Deep], 3 Seats Gtd | B12: 08:31:00 | C12: 08:31:00 | D12: 4.4 | G12: PS | I12: $1.50 KO [90 Players] | J12: 240 | K12: 1.5 | N12: PS
A13: PKO Rumble 16.5 - Sat [HypT] | B13: 08:32:00 | C13: 08:32:00 | D13: 2.2 | G13: 888 | I13: $2.50 [180 Players] [TURBO] | J13: 115 | K13: 2.5 | N13: PS
A14: $2,000 Voyage 5.50 | B14: 08:45:00 | C14: 08:45:00 | D14: 5.5 | G14: 888 | I14: $3.00 KO [9 Players] | J14: 65 | K14: 3 | N14: PS
A15: $2,000 PKO | B15: 09:00:00 | C15: 09:00:00 | D15: 33 | G15: 888 | I15: $3.50 [18 Players] | J15: 90 | K15: 3.5 | N15: PS
A16: Bounty Hunter $11 $1.5K Gtd | B16: 09:00:00 | C16: 09:00:00 | D16: 11 | G16: PP | I16: $3.50 [18 Players] [TURBO] | J16: 60 | K16: 3.5 | N16: PS
A17: Classic $27 $1.5K Gtd | B17: 09:00:00 | C17: 09:00:00 | D17: 27 | G17: PP | I17: $3.50 [45 Players] | J17: 145 | K17: 3.5 | N17: PS
A18: Big $4.40, $5K Gtd | B18: 09:00:00 | C18: 09:00:00 | D18: 4.4 | G18: PS | I18: $3.50 [45 Players] [TURBO] | J18: 85 | K18: 3.5 | N18: PS
A19: Deepstack $5.5 $1K Gtd | B19: 09:15:00 | C19: 09:15:00 | D19: 5.5 | G19: PP | I19: $3.50 [9 Players, HYPER] | J19: 22 | K19: 3.5 | N19: PS
A20: The Magnum Sat: 5 x $44 Gtd | B20: 09:15:00 | C20: 09:15:00 | D20: 5.5 | G20: PP | I20: $3.50 [9 Players, TURBO] | J20: 48 | K20: 3.5 | N20: PS
A21: Bounty Hunter $3.3 $500 Gtd | B21: 09:30:00 | C21: 09:30:00 | D21: 3.3 | G21: PP | I21: $4.50 [36 - 180 Players] | J21: 240 | K21: 4.5 | N21: PS
A22: The Grind Sat: 3 x $33 Gtd | B22: 09:30:00 | C22: 09:30:00 | D22: 3.3 | G22: PP | I22: satelite [HYPER] | J22: 10 | K22: 0.15 | N22: PS
A23: Bounty Hunter $22 $2K Gtd | B23: 09:30:00 | C23: 09:30:00 | D23: 22 | G23: PP
A24: Mini Daily Marathon, $8K Gtd [Slow] | B24: 09:30:00 | C24: 09:30:00 | D24: 5.5 | G24: PS
A25: Bounty Builder $16.50, $25K Gtd | B25: 09:30:00 | C25: 09:30:00 | D25: 16.5 | G25: PS
A26: Bounty Builder $44 Sat [Deep] | B26: 09:32:00 | C26: 09:32:00 | D26: 4.4 | G26: PS
A27: The Spartan Sat: 7 x $16.5 Gtd | B27: 09:45:00 | C27: 09:45:00 | D27: 2.2 | G27: PP
A28: The Predator Sat: 5 x $22 Gtd | B28: 09:45:00 | C28: 09:45:00 | D28: 2.2 | G28: PP
A29: $2K Gtd | B29: 09:45:00 | C29: 09:45:00 | D29: 5.5 | G29: PS
A30: Deep Stacks, $2K Gtd [8-Max] | B30: 10:00:00 | C30: 10:00:00 | D30: 7.5 | G30: PS
A31: Super $22 Sat: 10 x $22 Gtd | B31: 10:00:00 | C31: 10:00:00 | D31: 3.3 | G31: PP
A32: Bounty Hunter $7.5 $2.5K Gtd | B32: 10:00:00 | C32: 10:00:00 | D32: 7.5 | G32: PP
A33: The Grind Sat: 3 x $33 Gtd | B33: 10:15:00 | C33: 10:15:00 | D33: 3.3 | G33: PP
A34: The Magnum Sat: 5 x $44 Gtd | B34: 10:15:00 | C34: 10:15:00 | D34: 5.5 | G34: PP
A35: Progressive KO, $5K Gtd | B35: 10:20:00 | C35: 10:20:00 | D35: 5.5 | G35: PS
A36: Deep Stacks, $2K Gtd | B36: 10:25:00 | C36: 10:25:00 | D36: 27 | G36: PS
A37: $5,000 PKO Rumble 16.5 | B37: 10:30:00 | C37: 10:30:00 | D37: 16.5 | G37: 888
A38: The Spartan Sat: 7 x $16.5 Gtd | B38: 10:30:00 | C38: 10:30:00 | D38: 2.2 | G38: PP
A39: Bounty Hunter $3.3 $500 Gtd | B39: 10:30:00 | C39: 10:30:00 | D39: 3.3 | G39: PP
A40: Bounty Hunter $33 $2K Gtd | B40: 10:30:00 | C40: 10:30:00 | D40: 33 | G40: PP
A41: $3,000 Big Shot 5.50 | B41: 10:45:00 | C41: 10:45:00 | D41: 5.5 | G41: 888
A42: The Masters Sat: 3 x $55 Gtd | B42: 10:45:00 | C42: 10:45:00 | D42: 5.5 | G42: PP
A43: Big $7.50, $8K Gtd | B43: 11:00:00 | C43: 11:00:00 | D43: 7.5 | G43: PS
A44: $800 Deepstack | B44: 11:00:00 | C44: 11:00:00 | D44: 3.3 | G44: 888
A45: The Grind Sat: 3 x $33 Gtd | B45: 11:00:00 | C45: 11:00:00 | D45: 3.3 | G45: PP
A46: Super $22 Sat: 10 x $22 Gtd | B46: 11:00:00 | C46: 11:00:00 | D46: 3.3 | G46: PP
A47: Bounty Hunter $22 $2K Gtd | B47: 11:00:00 | C47: 11:00:00 | D47: 22 | G47: PP
A48: DeepStacks $5.5: $1.5K Gtd | B48: 11:05:00 | C48: 11:05:00 | D48: 5.5 | G48: PP
A49: The Grind $33 $7.5K Gtd | B49: 11:05:00 | C49: 11:05:00 | D49: 33 | G49: PP
A50: The Magnum Sat: 5 x $44 Gtd | B50: 11:15:00 | C50: 11:15:00 | D50: 5.5 | G50: PP
A51: 600 Player Cap, $1K Gtd | B51: 11:15:00 | C51: 11:15:00 | D51: 3.3 | G51: PS
A52: Hot $5.50, $10K Gtd [T] | B52: 11:15:00 | C52: 11:15:00 | D52: 5.5 | G52: PS
A53: The Masters Sat: 3 x $55 Gtd | B53: 11:30:00 | C53: 11:30:00 | D53: 5.5 | G53: PP
A54: The Spartan $16.5 $10K Gtd | B54: 11:30:00 | C54: 11:30:00 | D54: 16.5 | G54: PP
A55: Bounty Builder $5.50, $18K Gtd | B55: 11:30:00 | C55: 11:30:00 | D55: 5.5 | G55: PS
A56: Big $33 Sat [T], Deep Stacks | B56: 11:31:00 | C56: 11:31:00 | D56: 3.3 | G56: PS
A57: PKO Rumble 22 - Sat [HypT] | B57: 11:33:00 | C57: 11:33:00 | D57: 3.3 | G57: 888
A58: $2,000 Voyage 8.80 | B58: 11:45:00 | C58: 11:45:00 | D58: 8.8 | G58: 888
A59: Progressive KO, $6K Gtd | B59: 11:45:00 | C59: 11:45:00 | D59: 7.5 | G59: PS
A60: $10,000 Big Shot 33 | B60: 12:00:00 | C60: 12:00:00 | D60: 33 | G60: 888
A61: Bounty Hunter $5.50: $1.5K Gtd | B61: 12:00:00 | C61: 12:00:00 | D61: 5.5 | G61: PP
A62: Super $33 Sat: 10 x $33 Gtd | B62: 12:00:00 | C62: 12:00:00 | D62: 5.5 | G62: PP
A63: Big $3.30, $6K Gtd | B63: 12:00:00 | C63: 12:00:00 | D63: 3.3 | G63: PS
A64: The Stack $11 $8K Gtd | B64: 12:05:00 | C64: 12:05:00 | D64: 11 | G64: PP
A65: 350 Player Cap, $1K Gtd | B65: 12:05:00 | C65: 12:05:00 | D65: 5.5 | G65: PS
A66: Sunday Million - Sat | B66: 12:05:00 | C66: 12:05:00 | D66: 5.5 | G66: PS
A67: $500 Freezout | B67: 12:15:00 | C67: 12:15:00 | D67: 16.5 | G67: 888
A68: The Ninja $7.5 $4K Gtd | B68: 12:30:00 | C68: 12:30:00 | D68: 7.5 | G68: PP
A69: Bounty Builder $4.40, $18K Gtd | B69: 12:30:00 | C69: 12:30:00 | D69: 4.4 | G69: PS
A70: Bounty Builder $11, $70K Gtd | B70: 12:30:00 | C70: 12:30:00 | D70: 11 | G70: PS
A71: Big $33 Sat [T], Deep Stacks | B71: 12:32:00 | C71: 12:32:00 | D71: 3.3 | G71: PS
A72: 30% Progressive KO, $4K Gtd [T] | B72: 12:40:00 | C72: 12:40:00 | D72: 5.5 | G72: PS
A73: $500 PKO 6-max | B73: 12:45:00 | C73: 12:45:00 | D73: 5.5 | G73: 888
A74: Super $22 Sat: 10 x $22 Gtd | B74: 12:45:00 | C74: 12:45:00 | D74: 3.3 | G74: PP
A75: $5,000 Big Shot 11 | B75: 13:00:00 | C75: 13:00:00 | D75: 11 | G75: 888
A76: Bounty Hunter $3.30 $1K Gtd | B76: 13:00:00 | C76: 13:00:00 | D76: 3.3 | G76: PP
A77: The Masters Sat: 3 x $55 Gtd | B77: 13:00:00 | C77: 13:00:00 | D77: 5.5 | G77: PP
A78: Super $33 Sat: 10 x $33 Gtd | B78: 13:00:00 | C78: 13:00:00 | D78: 5.5 | G78: PP
A79: 350 Player Cap, $1K Gtd | B79: 13:00:00 | C79: 13:00:00 | D79: 5.5 | G79: PS
A80: Big $33, $12K Gtd | B80: 13:00:00 | C80: 13:00:00 | D80: 33 | G80: PS
A81: APAT Sunday Deepstack $750 Gtd | B81: 13:01:00 | C81: 13:01:00 | D81: 11 | G81: PP
A82: Big Shot 22 - Sat [T] | B82: 13:03:00 | C82: 13:03:00 | D82: 3.3 | G82: 888
A83: The Predator $22 $20K Gtd | B83: 13:05:00 | C83: 13:05:00 | D83: 22 | G83: PP
A84: Super $22: $50K Gtd | B84: 13:05:00 | C84: 13:05:00 | D84: 22 | G84: PP
A85: Progressive KO, Deep St, $8K Gtd | B85: 13:10:00 | C85: 13:10:00 | D85: 16.5 | G85: PS
A86: Hot $4.40, $6K Gtd [T] | B86: 13:15:00 | C86: 13:15:00 | D86: 4.4 | G86: PS
A87: Deep Stacks, $2.5K Gtd | B87: 13:15:00 | C87: 13:15:00 | D87: 5.5 | G87: PS
A88: Hot $11, $12K Gtd [T] | B88: 13:15:00 | C88: 13:15:00 | D88: 11 | G88: PS
A89: $1,000 Deepstack | B89: 13:30:00 | C89: 13:30:00 | D89: 5.5 | G89: 888
A90: $10,000 PKO Rumble 22 | B90: 13:30:00 | C90: 13:30:00 | D90: 22 | G90: 888
A91: The Headhunter $5.5 $6K Gtd | B91: 13:30:00 | C91: 13:30:00 | D91: 5.5 | G91: PP
A92: Bounty Builder $3.30, $15K Gtd | B92: 13:30:00 | C92: 13:30:00 | D92: 3.3 | G92: PS
A93: PKO Rumble 33 - Sat [HypT] | B93: 13:31:00 | C93: 13:31:00 | D93: 4.4 | G93: 888
A94: Big $55 Sat [T], Deep Stacks | B94: 13:31:00 | C94: 13:31:00 | D94: 5.5 | G94: PS
A95: $1,500 Super KO | B95: 13:45:00 | C95: 13:45:00 | D95: 11 | G95: 888
A96: The Blade Sat: 10 x $22 Gtd | B96: 14:00:00 | C96: 14:00:00 | D96: 2.2 | G96: PP
A97: BabySharkParty | B97: 14:00:00 | C97: 14:00:00 | D97: 5 | G97: PP
A98: Super $33 Sat: 7 x $33 Gtd | B98: 14:00:00 | C98: 14:00:00 | D98: 5.5 | G98: PP
A99: Big $4.40, $6K Gtd | B99: 14:00:00 | C99: 14:00:00 | D99: 4.4 | G99: PS
A100: Big $11, $15K Gtd | B100: 14:00:00 | C100: 14:00:00 | D100: 11 | G100: PS
A101: Super $5.50: $10K Gtd | B101: 14:05:00 | C101: 14:05:00 | D101: 5.5 | G101: PP
A102: The Clássico $22 $15K Gtd | B102: 14:05:00 | C102: 14:05:00 | D102: 22 | G102: PP
A103: Progressive KO, Deep St, $6K Gtd | B103: 14:05:00 | C103: 14:05:00 | D103: 4.4 | G103: PS
A104: 500 Player Cap, $1K Gtd | B104: 14:10:00 | C104: 14:10:00 | D104: 3.3 | G104: PS
A105: $5,000 PKO Rumble 8.8 | B105: 14:15:00 | C105: 14:15:00 | D105: 8.8 | G105: 888
A106: The Assassin Sat: 5 x $33 Gtd | B106: 14:30:00 | C106: 14:30:00 | D106: 3.3 | G106: PP
A107: The Terminator $15K Gtd | B107: 14:30:00 | C107: 14:30:00 | D107: 11 | G107: PP
A108: Bounty Builder $4.40, $15K Gtd | B108: 14:30:00 | C108: 14:30:00 | D108: 4.4 | G108: PS
A109: Bounty Builder $33, $70K Gtd | B109: 14:30:00 | C109: 14:30:00 | D109: 33 | G109: PS
A110: Big $22 Sat [T], Deep Stacks | B110: 14:31:00 | C110: 14:31:00 | D110: 2.2 | G110: PS
A111: The Five Diamond $4K Gtd | B111: 14:35:00 | C111: 14:35:00 | D111: 5.5 | G111: PP
A112: $4K Gtd | B112: 14:45:00 | C112: 14:45:00 | D112: 11 | G112: PS
A113: $10,000 Sunday Made to Amaze | B113: 15:00:00 | C113: 15:00:00 | D113: 5 | G113: 888
A114: $10,000 Big Shot 22 | B114: 15:00:00 | C114: 15:00:00 | D114: 22 | G114: 888
A115: The Brawl $3K Gtd | B115: 15:05:00 | C115: 15:05:00 | D115: 3.3 | G115: PP
A116: Super $3.30: $5K Gtd | B116: 15:05:00 | C116: 15:05:00 | D116: 3.3 | G116: PP
A117: The Ocean's $7.5K Gtd | B117: 15:05:00 | C117: 15:05:00 | D117: 11 | G117: PP
A118: The Mini Weekender Final Day: $25K Gtd | B118: 15:05:00 | C118: 15:05:00 | D118: 11 | G118: PP
A119: Super $11: $25K Gtd | B119: 15:05:00 | C119: 15:05:00 | D119: 11 | G119: PP
A120: Big $22 Sat [T], Deep Stacks | B120: 15:14:00 | C120: 15:14:00 | D120: 4.4 | G120: PS
A121: $1,000 Deepstack | B121: 15:15:00 | C121: 15:15:00 | D121: 16.5 | G121: 888
A122: Hot $3.30, $4K Gtd [T] | B122: 15:15:00 | C122: 15:15:00 | D122: 3.3 | G122: PS
A123: $1K Gtd | B123: 15:25:00 | C123: 15:25:00 | D123: 4.4 | G123: PS
A124: $2,500 Big Shot 4.4 | B124: 15:30:00 | C124: 15:30:00 | D124: 4.4 | G124: 888
A125: $6,000 PKO Rumble 33 | B125: 15:30:00 | C125: 15:30:00 | D125: 33 | G125: 888
A126: Bounty Builder $7.50, $25K Gtd | B126: 15:30:00 | C126: 15:30:00 | D126: 7.5 | G126: PS
A127: Bounty Builder $55 Sat [T], Deep Stacks | B127: 15:32:00 | C127: 15:32:00 | D127: 5.5 | G127: PS
A128: The Magnificent 7 $7K Gtd | B128: 15:37:00 | C128: 15:37:00 | D128: 7.7 | G128: PP
A129: $2K Gtd [8-Max] | B129: 16:00:00 | C129: 16:00:00 | D129: 11 | G129: PS
A130: Big $22, $10K Gtd | B130: 16:00:00 | C130: 16:00:00 | D130: 22 | G130: PS
A131: PKO Rumble 22 - Sat [HypT] | B131: 16:01:00 | C131: 16:01:00 | D131: 3.3 | G131: 888
A132: Progressive KO, $5K Gtd | B132: 16:10:00 | C132: 16:10:00 | D132: 27 | G132: PS
A133: $500 Deepstack [T] | B133: 16:15:00 | C133: 16:15:00 | D133: 3.3 | G133: 888
A134: The Blade $22 $10K Gtd | B134: 16:15:00 | C134: 16:15:00 | D134: 22 | G134: PP
A135: Hot $4.40, Prog KO, $6K Gtd [T] | B135: 16:15:00 | C135: 16:15:00 | D135: 4.4 | G135: PS
A136: 250 Player Cap, $1K Gtd | B136: 16:15:00 | C136: 16:15:00 | D136: 11 | G136: PS
A137: The Flash $4K Gtd | B137: 16:30:00 | C137: 16:30:00 | D137: 5.5 | G137: PP
A138: Big $33 Sat [T], Deep Stacks | B138: 16:31:00 | C138: 16:31:00 | D138: 3.3 | G138: PS
A139: Bounty Builder $16.50 Sat [T] Deep | B139: 16:32:00 | C139: 16:32:00 | D139: 2.2 | G139: PS
A140: $1K Gtd [8-Max] | B140: 16:40:00 | C140: 16:40:00 | D140: 3.3 | G140: PS
A141: Mini Sunday Stack, $8K Gtd | B141: 16:45:00 | C141: 16:45:00 | D141: 5.5 | G141: PS
A142: Classic $7.50 $2K Gtd | B142: 17:00:00 | C142: 17:00:00 | D142: 7.5 | G142: PP
A143: Big $5.50, $4K Gtd | B143: 17:00:00 | C143: 17:00:00 | D143: 5.5 | G143: PS
A144: Voyage 33 - Sat [HypT] | B144: 17:03:00 | C144: 17:03:00 | D144: 4.4 | G144: 888
A145: Bounty Builder $16.50, Sat [T] Deep | B145: 17:13:00 | C145: 17:13:00 | D145: 3.3 | G145: PS
A146: Deepstack $22 $3K Gtd | B146: 17:15:00 | C146: 17:15:00 | D146: 22 | G146: PP
A147: The Assassin: $20K Gtd | B147: 17:15:00 | C147: 17:15:00 | D147: 33 | G147: PP
A148: Hot $7.50, Prog KO, $12K Gtd [T] | B148: 17:15:00 | C148: 17:15:00 | D148: 7.5 | G148: PS
A149: $2K Gtd | B149: 17:15:00 | C149: 17:15:00 | D149: 11 | G149: PS
A150: 300 Player Cap, $1K Gtd | B150: 17:25:00 | C150: 17:25:00 | D150: 5.5 | G150: PS
A151: $3,000 PKO Rumble 5.5 | B151: 17:30:00 | C151: 17:30:00 | D151: 5.5 | G151: 888
A152: Bounty Hunter $3.3 $1K Gtd | B152: 17:30:00 | C152: 17:30:00 | D152: 3.3 | G152: PP
A153: Bounty Builder $33 Sat [T], Deep Stacks | B153: 17:32:00 | C153: 17:32:00 | D153: 3.3 | G153: PS
A154: $6,000 PKO Rumble 22 | B154: 18:00:00 | C154: 18:00:00 | D154: 22 | G154: 888
A155: Micro Saturday Speed, $5K Gtd [T] | B155: 18:00:00 | C155: 18:00:00 | D155: 3.3 | G155: PS
A156: Progressive KO, $2.5K Gtd [T] | B156: 18:00:00 | C156: 18:00:00 | D156: 4.4 | G156: PS
A157: Big $33, $8K Gtd | B157: 18:00:00 | C157: 18:00:00 | D157: 33 | G157: PS
A158: PKO Rumble 44 - Sat [T] | B158: 18:02:00 | C158: 18:02:00 | D158: 5.5 | G158: 888
A159: 30% Prog KO, Deep Stacks, $6K Gtd [T] | B159: 18:05:00 | C159: 18:05:00 | D159: 11 | G159: PS
A160: 350 Player Cap, $750 Gtd | B160: 18:25:00 | C160: 18:25:00 | D160: 3.3 | G160: PS
A161: Deepstack $11 $2.5K Gtd | B161: 18:30:00 | C161: 18:30:00 | D161: 11 | G161: PP
A162: Bounty Hunter $22 $5K Gtd | B162: 18:30:00 | C162: 18:30:00 | D162: 22 | G162: PP
A163: Bounty Builder $16.5, $30K Gtd | B163: 18:30:00 | C163: 18:30:00 | D163: 16.5 | G163: PS
A164: $3,000 Voyage 33 | B164: 19:00:00 | C164: 19:00:00 | D164: 33 | G164: 888
A165: Classic $27 $1.5K Gtd | B165: 19:00:00 | C165: 19:00:00 | D165: 27 | G165: PP
A166: Big $3.30, $2K Gtd | B166: 19:00:00 | C166: 19:00:00 | D166: 3.3 | G166: PS
A167: Mini Sunday Wrap-Up, $6K Gtd | B167: 19:00:00 | C167: 19:00:00 | D167: 11 | G167: PS
A168: Mini Battle Royale [Prog KO], $10K Gtd | B168: 19:00:00 | C168: 19:00:00 | D168: 11 | G168: PS
A169: Mini Thursday Thrill [Prog KO], $15K Gtd | B169: 19:00:00 | C169: 19:00:00 | D169: 22 | G169: PS
A170: Progressive KO, $2.5K Gtd [T] | B170: 19:05:00 | C170: 19:05:00 | D170: 5.5 | G170: PS
A171: $2,000 PKO Rumble 4.4 | B171: 19:15:00 | C171: 19:15:00 | D171: 4.4 | G171: 888
A172: Deepstack $5.5 $1K Gtd | B172: 19:15:00 | C172: 19:15:00 | D172: 5.5 | G172: PP
A173: Progressive KO, Deep St, $3K Gtd | B173: 19:25:00 | C173: 19:25:00 | D173: 16.5 | G173: PS
A174: $1,500 Dash 8.80 | B174: 19:30:00 | C174: 19:30:00 | D174: 8.8 | G174: 888
A175: Bounty Hunter $3.3 $500 Gtd | B175: 19:30:00 | C175: 19:30:00 | D175: 3.3 | G175: PP
A176: Bounty Hunter $33: $3K Gtd | B176: 19:30:00 | C176: 19:30:00 | D176: 33 | G176: PP
A177: Bounty Builder $33, $18K Gtd | B177: 19:30:00 | C177: 19:30:00 | D177: 33 | G177: PS
A178: Big $7.50, $2.5K Gtd | B178: 20:00:00 | C178: 20:00:00 | D178: 7.5 | G178: PS
A179: Big Shot 44 - Sat [T] | B179: 20:02:00 | C179: 20:02:00 | D179: 5.5 | G179: 888
A180: Deepstack $11 $1K Gtd | B180: 20:15:00 | C180: 20:15:00 | D180: 11 | G180: PP
A181: Hot $4.40, Prog KO, $3K Gtd [T] | B181: 20:15:00 | C181: 20:15:00 | D181: 4.4 | G181: PS
A182: 250 Player Cap, $500 Gtd | B182: 20:25:00 | C182: 20:25:00 | D182: 5.5 | G182: PS
A183: $1,000 PKO [8-max] | B183: 20:30:00 | C183: 20:30:00 | D183: 16.5 | G183: 888
A184: Bounty Hunter $11 $1K Gtd | B184: 21:00:00 | C184: 21:00:00 | D184: 11 | G184: PP
A185: $200 Deepstack [T] | B185: 21:15:00 | C185: 21:15:00 | D185: 3.3 | G185: 888
A186: $300 SNAP PKO 6-max | B186: 21:30:00 | C186: 21:30:00 | D186: 3.3 | G186: 888

Sheet torneios
A1: Início | B1: Buy-in | C1: Velocidade | D1: Nome | E1: Rebuy | F1: Site
A2: 00:00:00 | B2: 16.5 | C2: Regular | D2: Big $16.50, $2.5K Gtd | F2: PS
A3: 00:05:00 | B3: 4.4 | C3: Regular | D3: Progressive KO, $1.5K Gtd | F3: PS
A4: 00:15:00 | B4: 3.3 | C4: Turbo | D4: Hot $3.30, $1K Gtd | F4: PS
A5: 00:30:00 | B5: 22 | C5: Regular | D5: Bounty Builder $22, $10K Gtd | F5: PS
A6: 00:32:00 | B6: 2.2 | C6: Turbo | D6: Bounty Builder $22 Sat [Deep], 5 Seats Gtd | F6: PS
A7: 01:00:00 | B7: 2.2 | C7: Regular | D7: Big $2.20, $1K Gtd | F7: PS
A8: 01:00:00 | B8: 3.3 | C8: Turbo | D8: Progressive KO, $1K Gtd | F8: PS
A9: 01:15:00 | B9: 11 | C9: Regular | D9: Progressive KO, Deep Stacks, $3K Gtd | F9: PS
A10: 01:15:00 | B10: 22 | C10: Turbo | D10: Hot $22, $2.5K Gtd | F10: PS
A11: 01:30:00 | B11: 5.5 | C11: Regular | D11: Bounty Builder $5.50, $4K Gtd | F11: PS
A12: 02:00:00 | B12: 3.3 | C12: Regular | D12: Early Battle Mega Sat, 2 Seats Gtd | F12: PS
A13: 02:00:00 | B13: 3.3 | C13: Turbo | D13: Progressive KO, $1K Gtd | F13: PS
A14: 02:00:00 | B14: 16.5 | C14: Regular | D14: Mini Daily Pacific Rim Special, $10K Gtd | F14: PS
A15: 02:00:00 | B15: 33 | C15: Regular | D15: Big $33, $2K Gtd | F15: PS
A16: 02:10:00 | B16: 5.5 | C16: Regular | D16: Deep Stacks, $1K Gtd | F16: PS
A17: 02:15:00 | B17: 2.2 | C17: Turbo | D17: Hot $2.20 [Progressive KO], $1K Gtd | F17: PS
A18: 02:30:00 | B18: 2.2 | C18: Regular | D18: $500 Gtd | F18: PS
A19: 02:30:00 | B19: 22 | C19: Regular | D19: Bounty Builder $22, $8K Gtd | F19: PS
A20: 02:32:00 | B20: 7.5 | C20: Turbo | D20: Bounty Builder $82 Sat [Deep], 5 Seats Gtd | F20: PS
A21: 02:40:00 | B21: 16.5 | C21: Turbo | D21: $1.5K Gtd | F21: PS
A22: 03:00:00 | B22: 1.1 | C22: Turbo | D22: 30% Progressive KO, $500 Gtd | F22: PS
A23: 03:14:00 | B23: 2.2 | C23: Turbo | D23: Big $11 Sat, 5 Seats Gtd | F23: PS
A24: 03:20:00 | B24: 7.5 | C24: Regular | D24: Progressive KO, Deep Stacks, $2K Gtd | F24: PS
A25: 03:25:00 | B25: 11 | C25: Turbo | D25: $1K Gtd | F25: PS
A26: 03:30:00 | B26: 3.3 | C26: Regular | D26: Bounty Builder $3.30, $4K Gtd | F26: PS
A27: 03:32:00 | B27: 1.1 | C27: Turbo | D27: Bounty Builder $11 Sat [Deep], 10 Seats Gtd | F27: PS
A28: 03:32:00 | B28: 11 | C28: Turbo | D28: Bounty Builder $109 Sat [Deep], 5 Seats Gtd | F28: PS
A29: 04:00:00 | B29: 0.55 | C29: Regular | D29: Mini Battle Royale [Early Edition] Mega Sat, 5 Seats Gtd | F29: PS
A30: 04:00:00 | B30: 0.55 | C30: Regular | D30: Mini Saturday Knockout [Early Edition] Mega Sat, 10 Seats Gtd | F30: PS
A31: 04:00:00 | B31: 1.1 | C31: Regular | D31: Mini Fast Friday [Early Edition] Mega Sat, 3 Seats Gtd | F31: PS
A32: 04:00:00 | B32: 1.1 | C32: Regular | D32: Mini Thursday Thrill [Early Edition] Mega Sat, 3 Seats Gtd | F32: PS
A33: 04:00:00 | B33: 5.5 | C33: Regular | D33: Battle Royale [Early Edition] Mega Sat, 2 Seats Gtd | F33: PS
A34: 04:00:00 | B34: 5.5 | C34: Regular | D34: Saturday Knockout [Early Edition] Mega Sat, 2 Seats Gtd | F34: PS
A35: 04:00:00 | B35: 7.5 | C35: Regular | D35: Fast Friday [Early Edition] Mega Sat, 2 Seats Gtd | F35: PS
A36: 04:00:00 | B36: 11 | C36: Regular | D36: Big $11, $3K Gtd | F36: PS
A37: 04:00:00 | B37: 11 | C37: Regular | D37: Thursday Thrill [Early Edition] Mega Sat, 2 Seats Gtd | F37: PS
A38: 04:15:00 | B38: 7.5 | C38: Turbo | D38: Hot $7.50 [Progressive KO], $3K Gtd | F38: PS
A39: 04:20:00 | B39: 2.2 | C39: Turbo | D39: Progressive KO, $1K Gtd | F39: PS
A40: 04:32:00 | B40: 4.4 | C40: Turbo | D40: Bounty Builder $44 Sat [Deep], 5 Seats Gtd | F40: PS
A41: 04:46:00 | B41: 1.1 | C41: Turbo | D41: Battle Royale [Early Edition] Sat [Splash], 1 Seat Gtd | E41: Sim | F41: PS
A42: 04:46:00 | B42: 1.1 | C42: Turbo | D42: Fast Friday [Early Edition] Sat [Splash], 1 Seat Gtd | E42: Sim | F42: PS
A43: 04:46:00 | B43: 1.1 | C43: Turbo | D43: Saturday Knockout [Early Edition] Sat [Splash], 1 Seat Gtd | E43: Sim | F43: PS
A44: 05:00:00 | B44: 4.4 | C44: Turbo | D44: Progressive KO, $1.5K Gtd | F44: PS
A45: 05:00:00 | B45: 22 | C45: Regular | D45: Big $22, $4K Gtd | F45: PS
A46: 05:14:00 | B46: 11 | C46: Turbo | D46: Battle Royale [Early Edition] Sat [Deep], 3 Seats Gtd | F46: PS
A47: 05:14:00 | B47: 11 | C47: Turbo | D47: Fast Friday [Early Edition] Sat [Deep], 2 Seats Gtd | F47: PS
A48: 05:14:00 | B48: 11 | C48: Turbo | D48: Saturday Knockout [Early Edition] Sat [Deep], 3 Seats Gtd | F48: PS
A49: 05:14:00 | B49: 22 | C49: Turbo | D49: Thursday Thrill [Early Edition] Sat [Deep], 2 Seats Gtd | F49: PS
A50: 05:15:00 | B50: 1.1 | C50: Turbo | D50: Mini Battle Royale [Early Edition] Sat [Deep], 5 Seats Gtd | F50: PS
A51: 05:15:00 | B51: 1.1 | C51: Turbo | D51: Mini Fast Friday [Early Edition] Sat [Deep], 3 Seats Gtd | F51: PS
A52: 05:15:00 | B52: 1.1 | C52: Turbo | D52: Mini Saturday Knockout [Early Edition] Sat [Deep], 10 Seats Gtd | F52: PS
A53: 05:15:00 | B53: 2.2 | C53: Turbo | D53: Mini Thursday Thrill [Early Edition] Sat [Deep], 5 Seats Gtd | F53: PS
A54: 05:15:00 | B54: 7.5 | C54: Regular | D54: Deep Stacks, $1K Gtd | F54: PS
A55: 05:15:00 | B55: 27 | C55: Turbo | D55: Hot $27 [Progressive KO], $4K Gtd | F55: PS
A56: 05:20:00 | B56: 1.1 | C56: Regular | D56: $750 Gtd | E56: Sim | F56: PS
A57: 05:25:00 | B57: 33 | C57: Regular | D57: Progressive KO, Deep Stacks, $2K Gtd | F57: PS
A58: 05:29:00 | B58: 16.5 | C58: Regular | D58: Battle Royale [Early Edition] Sat [Deep], 3 Seats Gtd | F58: PS
A59: 05:29:00 | B59: 16.5 | C59: Regular | D59: Fast Friday [Early Edition] Sat [Deep], 2 Seats Gtd | F59: PS
A60: 05:29:00 | B60: 16.5 | C60: Regular | D60: Saturday Knockout [Early Edition] Sat [Deep], 3 Seats Gtd | F60: PS
A61: 05:29:00 | B61: 33 | C61: Regular | D61: Thursday Thrill [Early Edition] Sat [Deep], 3 Seats Gtd | F61: PS
A62: 05:30:00 | B62: 11 | C62: Regular | D62: Bounty Builder $11, $12K Gtd | F62: PS
A63: 05:40:00 | B63: 3.3 | C63: Regular | D63: $500 Gtd | F63: PS
A64: 06:00:00 | B64: 3.3 | C64: Regular | D64: Big $3.30, $1.5K Gtd | F64: PS
A65: 06:14:00 | B65: 3.3 | C65: Turbo | D65: Big $16.50 Sat, 3 Seats Gtd | F65: PS
A66: 06:15:00 | B66: 3.3 | C66: Turbo | D66: Hot $3.30, $1.5K Gtd | F66: PS
A67: 06:20:00 | B67: 5.5 | C67: Regular | D67: 30% Progressive KO, $2K Gtd | F67: PS
A68: 06:32:00 | B68: 2.2 | C68: Turbo | D68: Bounty Builder $22 Sat [Deep], 8 Seats Gtd | F68: PS
A69: 06:40:00 | B69: 1.1 | C69: Turbo | D69: Progressive KO, $500 Gtd | F69: PS
A70: 07:00:00 | B70: 11 | C70: Regular | D70: Mini Battle Royale [Early Edition, Progressive KO], $10K Gtd | F70: PS
A71: 07:00:00 | B71: 11 | C71: Regular | D71: Mini Saturday KO [Early Edition], $10K Gtd | F71: PS
A72: 07:00:00 | B72: 11 | C72: Turbo | D72: Mini Fast Friday [Early Edition], $6K Gtd | F72: PS
A73: 07:00:00 | B73: 16.5 | C73: Regular | D73: Big $16.50, $4K Gtd | F73: PS
A74: 07:00:00 | B74: 22 | C74: Regular | D74: Mini Thursday Thrill [Early Edition, Progressive KO], $12K Gtd | F74: PS
A75: 07:25:00 | B75: 5.5 | C75: Regular | D75: $1K Gtd | F75: PS
A76: 07:30:00 | B76: 3.3 | C76: Regular | D76: Daily Marathon Mega Sat, 2 Seats Gtd | F76: PS
A77: 07:30:00 | B77: 4.4 | C77: Regular | D77: Bounty Builder $4.40, $8K Gtd | F77: PS
A78: 07:30:00 | B78: 4.4 | C78: Regular | D78: Women's Special, $50 Gtd | F78: PS
A79: 07:32:00 | B79: 1.1 | C79: Turbo | D79: Bounty Builder $7.50 Sat [Deep], 15 Seats Gtd | F79: PS
A80: 07:40:00 | B80: 22 | C80: Turbo | D80: Progressive KO, $2K Gtd | F80: PS
A81: 07:45:00 | B81: 2.2 | C81: Regular | D81: Deep Stacks, $1K Gtd | F81: PS
A82: 08:05:00 | B82: 4.4 | C82: Regular | D82: $500 Gtd | F82: PS
A83: 08:14:00 | B83: 5.5 | C83: Turbo | D83: Big $27 Sat, 3 Seats Gtd | F83: PS
A84: 08:15:00 | B84: 16.5 | C84: Turbo | D84: Hot $16.50 [Progressive KO], $8K Gtd | F84: PS
A85: 08:20:00 | B85: 1.1 | C85: Regular | D85: Progressive KO, $1.5K Gtd | F85: PS
A86: 08:30:00 | B86: 22 | C86: Regular | D86: Bounty Builder $22, $18K Gtd | F86: PS
A87: 08:32:00 | B87: 2.2 | C87: Hyper | D87: PKO Rumble 16.5 - Sat [HypT] | F87: 888
A88: 08:32:00 | B88: 2.2 | C88: Turbo | D88: Bounty Builder $16.50 Sat [Deep], 15 Seats Gtd | F88: PS
A89: 08:45:00 | B89: 5.5 | C89: Regular | D89: $2,000 Voyage 5.50 | F89: 888
A90: 09:00:00 | B90: 1.1 | C90: Regular | D90: Bounty Hunter $1.1 $100 Gtd | F90: PP
A91: 09:00:00 | B91: 1.1 | C91: Regular | D91: $250 Gtd | F91: PS
A92: 09:00:00 | B92: 3.3 | C92: Regular | D92: Saturday Micro $8K Gtd | F92: PS
A93: 09:00:00 | B93: 11 | C93: Regular | D93: Bounty Hunter $11 $1.5K Gtd | F93: PP
A94: 09:00:00 | B94: 11 | C94: Regular | D94: Mini Daily Kickoff, $8K Gtd | F94: PS
A95: 09:00:00 | B95: 27 | C95: Regular | D95: Classic $27 $1.5K Gtd | F95: PP
A96: 09:00:00 | B96: 27 | C96: Regular | D96: Big $27, $4K Gtd | F96: PS
A97: 09:00:00 | B97: 33 | C97: Regular | D97: $2,000 PKO | F97: 888
A98: 09:14:00 | B98: 22 | C98: Regular | D98: Saturday Knockout Sat [Deep], 1 Seat Gtd | F98: PS
A99: 09:15:00 | B99: 2.2 | C99: Regular | D99: $500 PKO | F99: 888
A100: 09:15:00 | B100: 2.2 | C100: Turbo | D100: Saturday Eliminator Sat [Deep], 10 Seats Gtd | F100: PS
A101: 09:15:00 | B101: 4.4 | C101: Turbo | D101: Hot $4.40, $3K Gtd [T] | F101: PS
A102: 09:15:00 | B102: 5.5 | C102: Fast | D102: Deepstack $5.5 $1K Gtd | F102: PP
A103: 09:15:00 | B103: 5.5 | C103: Turbo | D103: The Magnum Sat: 5 x $44 Gtd | F103: PP
A104: 09:15:00 | B104: 27 | C104: Turbo | D104: Hot $27 [Progressive KO], $5K Gtd | F104: PS
A105: 09:30:00 | B105: 3.3 | C105: Hyper | D105: The Grind Sat: 3 x $33 Gtd | F105: PP
A106: 09:30:00 | B106: 3.3 | C106: Regular | D106: Bounty Hunter $3.3 $500 Gtd | F106: PP
A107: 09:30:00 | B107: 7.5 | C107: Regular | D107: Bounty Builder $7.50, $12K Gtd | F107: PS
A108: 09:30:00 | B108: 22 | C108: Regular | D108: Bounty Hunter $22 $2K Gtd | F108: PP
A109: 09:31:00 | B109: 4.4 | C109: Turbo | D109: Big $44 Sat [Deep], 3 Seats Gtd | F109: PS
A110: 09:32:00 | B110: 22 | C110: Turbo | D110: Bounty Builder $215 Sat [Deep], 3 Seats Gtd | F110: PS
A111: 09:45:00 | B111: 2.2 | C111: Hyper | D111: The Spartan Sat: 7 x $16.5 Gtd | F111: PP
A112: 09:45:00 | B112: 2.2 | C112: Turbo | D112: The Predator Sat: 5 x $22 Gtd | F112: PP
A113: 09:46:00 | B113: 2.2 | C113: Turbo | D113: Battle Royale Sat [Splash], 1 Seat Gtd | E113: Sim | F113: PS
A114: 10:00:00 | B114: 3.3 | C114: Turbo | D114: Super $22 Sat: 10 x $22 Gtd | F114: PP
A115: 10:00:00 | B115: 4.4 | C115: Regular | D115: Big $4.40, $5K Gtd | F115: PS
A116: 10:00:00 | B116: 7.5 | C116: Regular | D116: Bounty Hunter $7.5 $2.5K Gtd | F116: PP
A117: 10:14:00 | B117: 7.5 | C117: Turbo | D117: Big $44 Sat, 3 Seats Gtd | F117: PS
A118: 10:14:00 | B118: 22 | C118: Regular | D118: Saturday Knockout Sat [Deep], 1 Seat Gtd | F118: PS
A119: 10:15:00 | B119: 1 | C119: Regular | D119: $200 8-Max | F119: 888
A120: 10:15:00 | B120: 1.1 | C120: Regular | D120: $1K Gtd | F120: PS
A121: 10:15:00 | B121: 2.2 | C121: Turbo | D121: The Clássico Sat: 3 x $22 Gtd | F121: PP
A122: 10:15:00 | B122: 3.3 | C122: Hyper | D122: The Grind Sat: 3 x $33 Gtd | F122: PP
A123: 10:15:00 | B123: 5.5 | C123: Turbo | D123: The Magnum Sat: 5 x $44 Gtd | F123: PP
A124: 10:25:00 | B124: 2.2 | C124: Regular | D124: 600 Player Cap, $750 Gtd | F124: PS
A125: 10:30:00 | B125: 2.2 | C125: Hyper | D125: The Spartan Sat: 7 x $16.5 Gtd | F125: PP
A126: 10:30:00 | B126: 2.2 | C126: Regular | D126: Bounty Builder $2.20, $6K Gtd | F126: PS
A127: 10:30:00 | B127: 3.3 | C127: Regular | D127: Bounty Hunter $3.3 $500 Gtd | F127: PP
A128: 10:30:00 | B128: 5.5 | C128: Slow | D128: Mini Daily Marathon, $8K Gtd [Slow] | F128: PS
A129: 10:30:00 | B129: 16.5 | C129: Regular | D129: $5,000 PKO Rumble 16.5 | F129: 888
A130: 10:30:00 | B130: 16.5 | C130: Regular | D130: Bounty Builder $16.50, $25K Gtd | F130: PS
A131: 10:30:00 | B131: 33 | C131: Regular | D131: Bounty Hunter $33 $2K Gtd | F131: PP
A132: 10:31:00 | B132: 0.55 | C132: Turbo | D132: Big $7.50 Sat [Deep], 8 Seats Gtd | F132: PS
A133: 10:32:00 | B133: 4.4 | C133: Turbo | D133: Bounty Builder $44 Sat [Deep] | F133: PS
A134: 10:45:00 | B134: 2.2 | C134: Turbo | D134: The Predator Sat: 7 x $22 Gtd | F134: PP
A135: 10:45:00 | B135: 5.5 | C135: Regular | D135: $3,000 Big Shot 5.50 | F135: 888
A136: 10:45:00 | B136: 5.5 | C136: Turbo | D136: The Masters Sat: 3 x $55 Gtd | F136: PP
A137: 10:45:00 | B137: 5.5 | C137: Turbo | D137: $1K Gtd | F137: PS
A138: 11:00:00 | B138: 3.3 | C138: Hyper | D138: The Grind Sat: 3 x $33 Gtd | F138: PP
A139: 11:00:00 | B139: 3.3 | C139: Regular | D139: $800 Deepstack | F139: 888
A140: 11:00:00 | B140: 3.3 | C140: Turbo | D140: Super $22 Sat: 10 x $22 Gtd | F140: PP
A141: 11:00:00 | B141: 5.5 | C141: Turbo | D141: The Gladiator Sat: 3 x $55 Gtd | F141: PP
A142: 11:00:00 | B142: 7.5 | C142: Regular | D142: Deep Stacks, $2K Gtd [8-Max] | F142: PS
A143: 11:00:00 | B143: 22 | C143: Regular | D143: Bounty Hunter $22 $2K Gtd | F143: PP
A144: 11:01:00 | B144: 33 | C144: Regular | D144: Battle Royale Sat [Deep], 2 Seats Gtd | F144: PS
A145: 11:01:00 | B145: 33 | C145: Regular | D145: Fast Friday Sat [Deep], 1 Seat Gtd | F145: PS
A146: 11:05:00 | B146: 5.5 | C146: Fast | D146: DeepStacks $5.5: $1.5K Gtd | F146: PP
A147: 11:05:00 | B147: 33 | C147: Regular | D147: The Grind $33 $7.5K Gtd | F147: PP
A148: 11:10:00 | B148: 2.2 | C148: Regular | D148: $1K Gtd | F148: PS
A149: 11:13:00 | B149: 7.5 | C149: Turbo | D149: Bounty Builder $44 Sat, 10 Seats Gtd | F149: PS
A150: 11:14:00 | B150: 1.1 | C150: Turbo | D150: Big $7.50 Sat, 5 Seats Gtd | F150: PS
A151: 11:14:00 | B151: 22 | C151: Regular | D151: Saturday Knockout Sat Deep, 1 Seat Gtd | F151: PS
A152: 11:15:00 | B152: 1.1 | C152: Turbo | D152: Progressive KO, $1K Gtd | F152: PS
A153: 11:15:00 | B153: 2.2 | C153: Turbo | D153: The Clássico Sat: 3 x $22 Gtd | F153: PP
A154: 11:15:00 | B154: 5.5 | C154: Turbo | D154: The Magnum Sat: 5 x $44 Gtd | F154: PP
A155: 11:15:00 | B155: 22 | C155: Regular | D155: High Roller Club: Bounty Builder HR Mega Sat, 3 Seats Gtd | F155: PS
A156: 11:15:00 | B156: 33 | C156: Turbo | D156: Hot $33, $6K Gtd | F156: PS
A157: 11:20:00 | B157: 5.5 | C157: Regular | D157: Progressive KO, $5K Gtd | F157: PS
A158: 11:25:00 | B158: 27 | C158: Regular | D158: Deep Stacks, $2K Gtd | F158: PS
A159: 11:30:00 | B159: 2.2 | C159: Regular | D159: Bounty Hunter $2.20 $500 Gtd | F159: PP
A160: 11:30:00 | B160: 2.2 | C160: Turbo | D160: The Predator Sat: 7 x $22 Gtd | F160: PP
A161: 11:30:00 | B161: 5.5 | C161: Hyper | D161: The Masters Sat: 3 x $55 Gtd | F161: PP
A162: 11:30:00 | B162: 16.5 | C162: Regular | D162: The Spartan $16.5 $10K Gtd | F162: PP
A163: 11:31:00 | B163: 11 | C163: Turbo | D163: Big $109 Sat [Deep], 3 Seats Gtd | F163: PS
A164: 11:32:00 | B164: 1.1 | C164: Turbo | D164: Bounty Builder $11 Sat [Deep], 25 Seats Gtd | F164: PS
A165: 11:33:00 | B165: 3.3 | C165: Hyper | D165: PKO Rumble 22 - Sat [HypT] | F165: 888
A166: 11:40:00 | B166: 1.1 | C166: Regular | D166: $1K Gtd | F166: PS
A167: 11:45:00 | B167: 8.8 | C167: Regular | D167: $2,000 Voyage 8.80 | F167: 888
A168: 12:00:00 | B168: 1.1 | C168: Regular | D168: Mini Battle Royale Mega Sat, 10 Seats Gtd | F168: PS
A169: 12:00:00 | B169: 2.2 | C169: Regular | D169: Mini Fast Friday Mega Sat, 8 Seats Gtd | F169: PS
A170: 12:00:00 | B170: 3.3 | C170: Hyper | D170: Super $22 Sat: 10 x $22 Gtd | F170: PP
A171: 12:00:00 | B171: 5.5 | C171: Regular | D171: Bounty Hunter $5.50: $1.5K Gtd | F171: PP
A172: 12:00:00 | B172: 5.5 | C172: Turbo | D172: The Gladiator Sat: 5 x $55 Gtd | F172: PP
A173: 12:00:00 | B173: 5.5 | C173: Turbo | D173: Super $33 Sat: 10 x $33 Gtd | F173: PP
A174: 12:00:00 | B174: 7.5 | C174: Regular | D174: Big $7.50, $8K Gtd | F174: PS
A175: 12:00:00 | B175: 33 | C175: Regular | D175: $10,000 Big Shot 33 | F175: 888
A176: 12:01:00 | B176: 11 | C176: Regular | D176: Battle Royale Mega Sat, 5 Seats Gtd | F176: PS
A177: 12:01:00 | B177: 16.5 | C177: Regular | D177: Fast Friday Mega Sat, 2 Seats Gtd | F177: PS
A178: 12:05:00 | B178: 2.2 | C178: Fast | D178: DeepStacks $2.2: $500K Gtd | F178: PP
A179: 12:05:00 | B179: 11 | C179: Regular | D179: The Stack $11 $8K Gtd | F179: PP
A180: 12:13:00 | B180: 2.2 | C180: Turbo | D180: Bounty Builder $11 Sat, 15 Seats Gtd | F180: PS
A181: 12:15:00 | B181: 1 | C181: Hyper | D181: PKO Rumble 8.8 - Sat [HypT] | F181: 888
A182: 12:15:00 | B182: 2.2 | C182: Turbo | D182: The Clássico Sat: 5 x $22 Gtd | F182: PP
A183: 12:15:00 | B183: 3.3 | C183: Regular | D183: 600 Player Cap, $1K Gtd | F183: PS
A184: 12:15:00 | B184: 5.5 | C184: Turbo | D184: Hot $5.50, $10K Gtd [T] | F184: PS
A185: 12:15:00 | B185: 16.5 | C185: Regular | D185: $500 Freezout | F185: 888
A186: 12:15:00 | B186: 22 | C186: Turbo | D186: Hot $22 [Progressive KO], $15K Gtd | F186: PS
A187: 12:20:00 | B187: 5.5 | C187: Hyper | D187: The Masters Sat: 3 x $55 Gtd | F187: PP
A188: 12:27:00 | B188: 11 | C188: Turbo | D188: Bounty Builder $109 Sat [Deep], 8 Seats Gtd | F188: PS
A189: 12:30:00 | B189: 5.5 | C189: Regular | D189: Bounty Builder $5.50, $18K Gtd | F189: PS
A190: 12:30:00 | B190: 7.5 | C190: Regular | D190: The Ninja $7.5 $4K Gtd | F190: PP
A191: 12:31:00 | B191: 3.3 | C191: Turbo | D191: Big $33 Sat [T], Deep Stacks | F191: PS
A192: 12:45:00 | B192: 1 | C192: Turbo | D192: $300 [T] | F192: 888
A193: 12:45:00 | B193: 3.3 | C193: Hyper | D193: Super $22 Sat: 10 x $22 Gtd | F193: PP
A194: 12:45:00 | B194: 5.5 | C194: Regular | D194: $500 PKO 6-max | F194: 888
A195: 12:45:00 | B195: 7.5 | C195: Regular | D195: Progressive KO, $5K Gtd | F195: PS
A196: 12:46:00 | B196: 2.2 | C196: Turbo | D196: Battle Royale Sat [Splash], 1 Seat Gtd | E196: Sim | F196: PS
A197: 12:47:00 | B197: 16.5 | C197: Regular | D197: Bounty Builder $109 Sat [Deep], 8 Seats Gtd | F197: PS
A198: 13:00:00 | B198: 1.1 | C198: Turbo | D198: The Mini One Shot - Sat [T] | F198: PP
A199: 13:00:00 | B199: 1.1 | C199: Turbo | D199: APAT $11 - Sat [T] | F199: PP
A200: 13:00:00 | B200: 3.3 | C200: Regular | D200: Bounty Hunter $3.30 $1K Gtd | F200: PP
... 221 more rows

Sheet consulta
B2: Sit & Go | E2: MTT | H2: 1 dólar = | I2: 5 | J2: reais
B3: jogadores | C3: 18 | E3: jogadores | F3: 1500
B4: ROI | C4: 0.1 | E4: ROI | F4: 0.2
B5: chance de quebrar | C5: 0.1 | E5: chance de quebrar | F5: 0.1
B6: Buy-in | C6: 7 | E6: Buy-in | F6: 4.606027138
B8: Bankroll | C8: =ROUND(C6*IF(banco!Q6=banco!Q7,banco!P6,banco!P7+((banco!Q7-C4)/(banco!Q7-banco!Q6))*(banco!P6-banco!P7)),2) -> 295.7 | E8: Bankroll | F8: =ROUND(F6*IF(banco!Q14=banco!Q15,banco!P14,banco!P15+((banco!Q15-F4)/(banco!Q15-banco!Q14))*(banco!P14-banco!P15)),2) -> 1000
C9: =C8*$I$2 -> 1478.5 | F9: =F8*$I$2 -> 5000
B11: Renda mensal
B12: Dias por mês | C12: 8
B13: ROI | C13: 0.25
B14: Torneios por dia | C14: 30
B15: Buy-in médio | C15: 11
B17: Torneios por mês | C17: =C14*C12 -> 240
B18: Renda | C18: =C15*C13*C14*C12 -> 660
C19: =C18*$I$2 -> 3300
B32: mesas | C32: horas | D32: horas | E32: por dia | F32: dias/mês | G32: por mês | H32: AVG BI | I32: Lucro
B33: 4 | C33: 2 | D33: 6 | E33: =D33*B33/C33 -> 12 | F33: 12 | G33: =F33*E33 -> 144 | H33: 2.5 | I33: ="$ "&H33*#REF!*G33 -> 
B34: 8 | C34: 2 | D34: 5 | E34: =D34*B34/C34 -> 20 | F34: 12 | G34: =F34*E34 -> 240 | H34: 2.5 | I34: ="$ "&H34*#REF!*G34 -> 
B35: 16 | C35: 2 | D35: 6 | E35: =D35*B35/C35 -> 48 | F35: 12 | G35: =F35*E35 -> 576 | H35: 2.5 | I35: ="$ "&H35*#REF!*G35 -> 
B39: torneios | C39: ROI | D39: BI | E39: lucro
B40: 400 | C40: -0.15 | D40: 40 | E40: =D40*C40*B40 -> -2400
B41: 1000 | C41: 0.35 | D41: 5.5 | E41: =D41*C41*B41 -> 1925

Sheet banco (hidden)
A1: field | B1: roi | C1: 0 | D1: 0.01 | E1: 0.05 | F1: 0.1 | H1: field | I1: roi | J1: 0 | K1: 0.01 | L1: 0.05 | M1: 0.1
A2: 300 | B2: 0 | C2: 592.2562909 | D2: 315.5616196 | E2: 227.91636 | F2: 184.3194764 | H2: 9 | I2: 0 | J2: =1.2*J3 -> 106.8471086 | K2: =1.2*K3 -> 52.84668869 | L2: =1.2*L3 -> 34.61602629 | M2: =1.2*M3 -> 26.540288 | P2: Contas auxiliares Sit
A3: 300 | B3: 0.05 | C3: 493.5469091 | D3: 262.9680164 | E3: 189.9303 | F3: 153.5995636 | H3: 9 | I3: 0.1 | J3: 89.03925714 | K3: 44.03890724 | L3: 28.84668857 | M3: 22.11690667 | P3: =MATCH(consulta!C3,banco!H1:H35,0) -> 9 | Q3: field
A4: 300 | B4: 0.1 | C4: 411.2890909 | D4: 219.1400136 | E4: 158.27525 | F4: 127.9996364 | H4: 9 | I4: 0.2 | J4: =0.63*J3 -> 56.094732 | K4: =0.63*K3 -> 27.74451156 | L4: =0.63*L3 -> 18.1734138 | M4: =0.63*M3 -> 13.9336512 | P4: =MATCH(consulta!C4,banco!I2:I7,1) -> 2 | Q4: ROI
A5: 300 | B5: 0.15 | C5: 331.2154545 | D5: 183.7847636 | E5: 129.9733864 | F5: 103.0515455 | H5: 9 | I5: 0.3 | J5: =0.73*J4 -> 40.94915436 | K5: =0.73*K4 -> 20.25349344 | L5: =0.73*L4 -> 13.26659207 | M5: =0.73*M4 -> 10.17156538 | P5: =MATCH(consulta!C5,banco!J1:M1,0) -> 4 | Q5: chance de quebrar
A6: 300 | B6: 0.2 | C6: 306.1395455 | D6: 153.20315 | E6: 105.1561364 | F6: 81.99736364 | H6: 9 | I6: 0.4 | J6: =0.74*J5 -> 30.30237423 | K6: =0.74*K5 -> 14.98758514 | L6: =0.74*L5 -> 9.817278135 | M6: =0.74*M5 -> 7.526958378 | P6: =INDIRECT("banco!L"&banco!P3+banco!P4-1&"C"&9+banco!P5,consulta!LB32) -> 42.24253333 | Q6: =INDIRECT("banco!L"&banco!P3+banco!P4-1&"C9",consulta!LB32) -> 0.1 | R6: inferior
A7: 300 | B7: 0.25 | C7: 302.4109091 | D7: 127.3319727 | E7: 86.12072727 | F7: 66.80672727 | H7: 9 | I7: 0.5 | J7: =0.8*J6 -> 24.24189938 | K7: =0.8*K6 -> 11.99006812 | L7: =0.8*L6 -> 7.853822508 | M7: =0.8*M6 -> 6.021566703 | P7: =INDIRECT("banco!L"&banco!P3+banco!P4&"C"&9+banco!P5,consulta!LB32) -> 26.612796 | Q7: =INDIRECT("banco!L"&banco!P3+banco!P4&"C9",consulta!LB32) -> 0.2 | R7: superior
A8: 300 | B8: 0.3 | C8: 213.8559091 | D8: 108.7664909 | E8: 72.63993182 | F8: 55.48640909 | H8: 9 | I8: 0.5 | J8: 24.24189938 | K8: 11.99006812 | L8: 7.853822508 | M8: 6.021566703
A9: 300 | B9: 0.35 | C9: 171.0847273 | D9: 87.01319273 | E9: 58.11194545 | F9: 44.38912727 | H9: 18 | I9: 0 | J9: =1.2*J10 -> 178.3625714 | K9: =1.2*K10 -> 96.53682514 | L9: =1.2*L10 -> 65.0324 | M9: =1.2*M10 -> 50.69104
A10: 300 | B10: 0.4 | C10: 136.8677818 | D10: 69.61055418 | E10: 46.48955636 | F10: 35.51130182 | H10: 18 | I10: 0.1 | J10: 148.6354762 | K10: 80.44735429 | L10: 54.19366667 | M10: 42.24253333 | P10: Contas auxiliares MTT
A11: 300 | B11: 0.45 | C11: 109.4942255 | D11: 55.68844335 | E11: 37.19164509 | F11: 28.40904145 | H11: 18 | I11: 0.2 | J11: =0.63*J10 -> 93.64035 | K11: =0.63*K10 -> 50.6818332 | L11: =0.63*L10 -> 34.14201 | M11: =0.63*M10 -> 26.612796 | P11: =MATCH(consulta!F3,banco!A2:A109,1)-10 -> 38 | Q11: field
A12: 300 | B12: 0.5 | C12: 87.59538036 | D12: 44.55075468 | E12: 29.75331607 | F12: 22.72723316 | H12: 18 | I12: 0.3 | J12: =0.73*J11 -> 68.3574555 | K12: =0.73*K11 -> 36.99773824 | L12: =0.73*L11 -> 24.9236673 | M12: =0.73*M11 -> 19.42734108 | P12: =MATCH(consulta!F4,banco!B2:B12,1) -> 5 | Q12: ROI
A13: 300 | B13: 0.5 | C13: 87.59538036 | D13: 44.55075468 | E13: 29.75331607 | F13: 22.72723316 | H13: 18 | I13: 0.4 | J13: =0.74*J12 -> 50.58451707 | K13: =0.74*K12 -> 27.37832629 | L13: =0.74*L12 -> 18.4435138 | M13: =0.74*M12 -> 14.3762324 | P13: =MATCH(consulta!F5,banco!C1:F1,0) -> 4 | Q13: chance de quebrar
A14: 500 | B14: 0 | C14: 642.2851636 | D14: 398.9055404 | E14: 299.1726982 | F14: 247.64328 | H14: 18 | I14: 0.5 | J14: =0.8*J13 -> 40.46761366 | K14: =0.8*K13 -> 21.90266104 | L14: =0.8*L13 -> 14.75481104 | M14: =0.8*M13 -> 11.50098592 | P14: =IF(Q$16=15000,P16,banco!P16+((consulta!F$3-banco!Q16)/(banco!Q18-banco!Q16))*(banco!P18-banco!P16)) -> 217.1064545 | Q14: =INDIRECT("banco!L"&banco!P11+banco!P12-1&"C2",consulta!LB20) -> 0.2 | R14: inferior
A15: 500 | B15: 0.05 | C15: 535.2376364 | D15: 332.4212836 | E15: 249.3105818 | F15: 206.3694 | H15: 18 | I15: 0.5 | J15: 40.46761366 | K15: 21.90266104 | L15: 14.75481104 | M15: 11.50098592 | P15: =IF(Q$16=15000,P17,banco!P17+((consulta!F$3-banco!Q17)/(banco!Q19-banco!Q17))*(banco!P19-banco!P17)) -> 191.9248636 | Q15: =INDIRECT("banco!L"&banco!P11+banco!P12&"C2",consulta!LB20) -> 0.25 | R15: superior
A16: 500 | B16: 0.1 | C16: 446.0313636 | D16: 277.0177364 | E16: 207.7588182 | F16: 171.9745 | H16: 45 | I16: 0 | J16: =1.2*J17 -> 280.8 | K16: =1.2*K17 -> 154.8 | L16: =1.2*L17 -> 108 | M16: =1.2*M17 -> 85.2 | P16: =INDIRECT("banco!L"&banco!P11+banco!P12-1&"C"&2+banco!P13,consulta!LB20) -> 217.1064545 | Q16: =INDIRECT("banco!L"&banco!P11+banco!P12-1&"C1",consulta!LB20) -> 1500 | R16: =INDIRECT("banco!L"&banco!P11+banco!P12-1&"C2",consulta!LB20) -> 0.2 | S16: field abaixo
A17: 500 | B17: 0.15 | C17: 408.0468182 | D17: 247.4387455 | E17: 180.2969091 | F17: 144.4536364 | H17: 45 | I17: 0.1 | J17: 234 | K17: 129 | L17: 90 | M17: 71 | P17: =INDIRECT("banco!L"&banco!P11+banco!P12&"C"&2+banco!P13,consulta!LB20) -> 191.9248636 | Q17: =INDIRECT("banco!L"&banco!P11+banco!P12&"C1",consulta!LB20) -> 1500 | R17: =INDIRECT("banco!L"&banco!P11+banco!P12&"C2",consulta!LB20) -> 0.25 | S17: field abaixo
A18: 500 | B18: 0.2 | C18: 410.5827273 | D18: 212.1261636 | E18: 149.1326136 | F18: 117.3744545 | H18: 45 | I18: 0.2 | J18: 155.75 | K18: 84.4408 | L18: 54.4325 | M18: 42.282 | P18: =INDIRECT("banco!L"&banco!P11+banco!P12-1+12&"C"&2+banco!P13,consulta!LB20) -> 264.5562273 | Q18: =INDIRECT("banco!L"&banco!P11+banco!P12-1+12&"C1",consulta!LB20) -> 2000 | R18: =INDIRECT("banco!L"&banco!P11+banco!P12-1+12&"C2",consulta!LB20) -> 0.2 | S18: field acima
A19: 500 | B19: 0.25 | C19: 366.4436364 | D19: 183.5880227 | E19: 126.3684091 | F19: 98.21263636 | H19: 45 | I19: 0.3 | J19: 130.37 | K19: 58.0737 | L19: 37.6815 | M19: 28.992 | P19: =INDIRECT("banco!L"&banco!P11+banco!P12+12&"C"&2+banco!P13,consulta!LB20) -> 235.4004091 | Q19: =INDIRECT("banco!L"&banco!P11+banco!P12+12&"C1",consulta!LB20) -> 2000 | R19: =INDIRECT("banco!L"&banco!P11+banco!P12+12&"C2",consulta!LB20) -> 0.25 | S19: field acima
A20: 500 | B20: 0.3 | C20: 312.1163636 | D20: 156.0247591 | E20: 106.548 | F20: 83.07036364 | H20: 45 | I20: 0.4 | J20: 94.19 | K20: 43.7401 | L20: 28.1405 | M20: 21.641
A21: 500 | B21: 0.35 | C21: 249.6930909 | D21: 124.8198073 | E21: 85.2384 | F21: 66.45629091 | H21: 45 | I21: 0.5 | J21: =0.8*J19 -> 104.296 | K21: =0.8*K19 -> 46.45896 | L21: =0.8*L19 -> 30.1452 | M21: =0.8*M19 -> 23.1936
A22: 500 | B22: 0.4 | C22: 199.7544727 | D22: 99.85584582 | E22: 68.19072 | F22: 53.16503273 | H22: 45 | I22: 0.5 | J22: 104.296 | K22: 46.45896 | L22: 30.1452 | M22: 23.1936
A23: 500 | B23: 0.45 | C23: 159.8035782 | D23: 79.88467665 | E23: 54.552576 | F23: 42.53202618 | H23: 90 | I23: 0 | J23: =1.2*J24 -> 297.36 | K23: =1.2*K24 -> 179.769 | L23: =1.2*L24 -> 126.0494 | M23: =1.2*M24 -> 99.34
A24: 500 | B24: 0.5 | C24: 127.8428625 | D24: 63.90774132 | E24: 43.6420608 | F24: 34.02562095 | H24: 90 | I24: 0.1 | J24: 247.8 | K24: 149.8075 | L24: 105.0411667 | M24: 82.78333333
A25: 500 | B25: 0.5 | C25: 127.8428625 | D25: 63.90774132 | E25: 43.6420608 | F25: 34.02562095 | H25: 90 | I25: 0.2 | J25: =0.63*J24 -> 156.114 | K25: =0.63*K24 -> 94.378725 | L25: =0.63*L24 -> 66.175935 | M25: =0.63*M24 -> 52.1535
A26: 1000 | B26: 0 | C26: 732.6405818 | D26: 491.4219207 | E26: 383.5462909 | F26: 319.6824873 | H26: 90 | I26: 0.3 | J26: =0.73*J25 -> 113.96322 | K26: =0.73*K25 -> 68.89646925 | L26: =0.73*L25 -> 48.30843255 | M26: =0.73*M25 -> 38.072055
A27: 1000 | B27: 0.05 | C27: 610.5338182 | D27: 409.5182673 | E27: 319.6219091 | F27: 266.4020727 | H27: 90 | I27: 0.4 | J27: =0.74*J26 -> 84.3327828 | K27: =0.74*K26 -> 50.98338724 | L27: =0.74*L26 -> 35.74824009 | M27: =0.74*M26 -> 28.1733207
A28: 1000 | B28: 0.1 | C28: 508.7781818 | D28: 341.2652227 | E28: 266.3515909 | F28: 222.0017273 | H28: 90 | I28: 0.5 | J28: =0.8*J26 -> 91.170576 | K28: =0.8*K26 -> 55.1171754 | L28: =0.8*L26 -> 38.64674604 | M28: =0.8*M26 -> 30.457644
A29: 1000 | B29: 0.15 | C29: 497.935 | D29: 311.4293 | E29: 233.1207727 | F29: 191.4832273 | H29: 90 | I29: 0.5 | J29: 91.170576 | K29: 55.1171754 | L29: 38.64674604 | M29: 30.457644
A30: 1000 | B30: 0.2 | C30: 445.3290909 | D30: 278.2796864 | E30: 202.0685909 | F30: 164.2345 | H30: 180 | I30: 0 | J30: =1.2*J31 -> 503.448 | K30: =1.2*K31 -> 320.81028 | L30: =1.2*L31 -> 235.9938 | M30: =1.2*M31 -> 194.0412
A31: 1000 | B31: 0.25 | C31: 420.2804545 | D31: 244.9796636 | E31: 174.8011591 | F31: 140.124 | H31: 180 | I31: 0.1 | J31: 419.54 | K31: 267.3419 | L31: 196.6615 | M31: 161.701
A32: 1000 | B32: 0.3 | C32: 389.7868182 | D32: 215.6822909 | E32: 151.7230455 | F32: 118.2677727 | H32: 180 | I32: 0.2 | J32: =0.63*J31 -> 264.3102 | K32: =0.63*K31 -> 168.425397 | L32: =0.63*L31 -> 123.896745 | M32: =0.63*M31 -> 101.87163
A33: 1000 | B33: 0.35 | C33: 311.8294545 | D33: 172.5458327 | E33: 121.3784364 | F33: 94.61421818 | H33: 180 | I33: 0.3 | J33: =0.73*J32 -> 192.946446 | K33: =0.73*K32 -> 122.9505398 | L33: =0.73*L32 -> 90.44462385 | M33: =0.73*M32 -> 74.3662899
A34: 1000 | B34: 0.4 | C34: 249.4635636 | D34: 138.0366662 | E34: 97.10274909 | F34: 75.69137455 | H34: 180 | I34: 0.4 | J34: =0.74*J33 -> 142.78037 | K34: =0.74*K33 -> 90.98339946 | L34: =0.74*L33 -> 66.92902165 | M34: =0.74*M33 -> 55.03105453
A35: 1000 | B35: 0.45 | C35: 199.5708509 | D35: 110.4293329 | E35: 77.68219927 | F35: 60.55309964 | H35: 180 | I35: 0.5 | J35: =0.8*J34 -> 114.224296 | K35: =0.8*K34 -> 72.78671957 | L35: =0.8*L34 -> 53.54321732 | M35: =0.8*M34 -> 44.02484362
A36: 1000 | B36: 0.5 | C36: 159.6566807 | D36: 88.34346636 | E36: 62.14575942 | F36: 48.44247971 | H36: 180 | I36: 0.5 | J36: 114.224296 | K36: 72.78671957 | L36: 53.54321732 | M36: 44.02484362
A37: 1000 | B37: 0.5 | C37: 159.6566807 | D37: 88.34346636 | E37: 62.14575942 | F37: 48.44247971
A38: 1500 | B38: 0 | C38: 850.1851636 | D38: 591.7013149 | E38: 472.7338036 | F38: 399.6036
A39: 1500 | B39: 0.05 | C39: 708.4876364 | D39: 493.0844291 | E39: 393.9448364 | F39: 333.003
A40: 1500 | B40: 0.1 | C40: 590.4063636 | D40: 410.9036909 | E40: 328.2873636 | F40: 277.5025
A41: 1500 | B41: 0.15 | C41: 565.7927273 | D41: 380.9421727 | E41: 292.9994318 | F41: 244.9400455
A42: 1500 | B42: 0.2 | C42: 504.3868182 | D42: 348.5537455 | E42: 263.9731818 | F42: 217.1064545
A43: 1500 | B43: 0.25 | C43: 512.2509091 | D43: 317.5221182 | E43: 236.4544545 | F43: 191.9248636
A44: 1500 | B44: 0.3 | C44: 494.1872727 | D44: 292.0786364 | E44: 208.2978636 | F44: 166.5872727
A45: 1500 | B45: 0.35 | C45: 395.3498182 | D45: 233.6629091 | E45: 166.6382909 | F45: 133.2698182
A46: 1500 | B46: 0.4 | C46: 316.2798545 | D46: 186.9303273 | E46: 133.3106327 | F46: 106.6158545
A47: 1500 | B47: 0.45 | C47: 253.0238836 | D47: 149.5442618 | E47: 106.6485062 | F47: 85.29268364
A48: 1500 | B48: 0.5 | C48: 202.4191069 | D48: 119.6354095 | E48: 85.31880495 | F48: 68.23414691
A49: 1500 | B49: 0.5 | C49: 202.4191069 | D49: 119.6354095 | E49: 85.31880495 | F49: 68.23414691
A50: 2000 | B50: 0 | C50: 943.8473455 | D50: 680.8312145 | E50: 547.1634764 | F50: 465.4847782
A51: 2000 | B51: 0.05 | C51: 786.5394545 | D51: 567.3593455 | E51: 455.9695636 | F51: 387.9039818
A52: 2000 | B52: 0.1 | C52: 655.4495455 | D52: 472.7994545 | E52: 379.9746364 | F52: 323.2533182
A53: 2000 | B53: 0.15 | C53: 615.3404545 | D53: 440.5904636 | E53: 346.7543864 | F53: 294.5708182
A54: 2000 | B54: 0.2 | C54: 573.8731818 | D54: 412.0938818 | E54: 319.2614773 | F54: 264.5562273
A55: 2000 | B55: 0.25 | C55: 574.4418182 | D55: 382.1620455 | E55: 287.8827955 | F55: 235.4004091
A56: 2000 | B56: 0.3 | C56: 549.9918182 | D56: 350.9906955 | E56: 260.3900682 | F56: 214.1859545
A57: 2000 | B57: 0.35 | C57: 439.9934545 | D57: 280.7925564 | E57: 208.3120545 | F57: 171.3487636
A58: 2000 | B58: 0.4 | C58: 351.9947636 | D58: 224.6340451 | E58: 166.6496436 | F58: 137.0790109
A59: 2000 | B59: 0.45 | C59: 281.5958109 | D59: 179.7072361 | E59: 133.3197149 | F59: 109.6632087
A60: 2000 | B60: 0.5 | C60: 225.2766487 | D60: 143.7657889 | E60: 106.6557719 | F60: 87.73056698
A61: 2000 | B61: 0.5 | C61: 225.2766487 | D61: 143.7657889 | E61: 106.6557719 | F61: 87.73056698
A62: 3000 | B62: 0 | C62: 968.6611636 | D62: 773.6017942 | E62: 642.3977782 | F62: 562.6522473
A63: 3000 | B63: 0.05 | C63: 807.2176364 | D63: 644.6681618 | E63: 535.3314818 | F63: 468.8768727
A64: 3000 | B64: 0.1 | C64: 672.6813636 | D64: 537.2234682 | E64: 446.1095682 | F64: 390.7307273
A65: 3000 | B65: 0.15 | C65: 648.6709091 | D65: 510.7827682 | E65: 416.0674318 | F65: 357.3350909
A66: 3000 | B66: 0.2 | C66: 649.6922727 | D66: 486.3807682 | E66: 388.6047045 | F66: 327.6005455
A67: 3000 | B67: 0.25 | C67: 618.1672727 | D67: 455.4573318 | E67: 357.3934773 | F67: 300.8811818
A68: 3000 | B68: 0.3 | C68: 588.0459091 | D68: 428.7856773 | E68: 332.4981591 | F68: 275.7219545
A69: 3000 | B69: 0.35 | C69: 470.4367273 | D69: 343.0285418 | E69: 265.9985273 | F69: 220.5775636
A70: 3000 | B70: 0.4 | C70: 376.3493818 | D70: 274.4228335 | E70: 212.7988218 | F70: 176.4620509
A71: 3000 | B71: 0.45 | C71: 301.0795055 | D71: 219.5382668 | E71: 170.2390575 | F71: 141.1696407
A72: 3000 | B72: 0.5 | C72: 240.8636044 | D72: 175.6306134 | E72: 136.191246 | F72: 112.9357126
A73: 3000 | B73: 0.5 | C73: 240.8636044 | D73: 175.6306134 | E73: 136.191246 | F73: 112.9357126
A74: 5000 | B74: 0 | C74: 1004.011855 | D74: 850.1406022 | E74: 724.8217091 | F74: 647.9620364
A75: 5000 | B75: 0.05 | C75: 836.6765455 | D75: 708.4505018 | E75: 604.0180909 | F75: 539.9683636
A76: 5000 | B76: 0.1 | C76: 697.2304545 | D76: 590.3754182 | E76: 503.3484091 | F76: 449.9736364
A77: 5000 | B77: 0.15 | C77: 694.5345455 | D77: 566.2011636 | E77: 478.1074091 | F77: 418.3767727
A78: 5000 | B78: 0.2 | C78: 664.1736364 | D78: 540.6760636 | E78: 450.9044318 | F78: 393.8040909
A79: 5000 | B79: 0.25 | C79: 633.585 | D79: 515.6467545 | E79: 422.2803636 | F79: 362.6218182
A80: 5000 | B80: 0.3 | C80: 638.27 | D80: 493.0797545 | E80: 396.4935 | F80: 336.8075909
A81: 5000 | B81: 0.35 | C81: 510.616 | D81: 394.4638036 | E81: 317.1948 | F81: 269.4460727
A82: 5000 | B82: 0.4 | C82: 408.4928 | D82: 315.5710429 | E82: 253.75584 | F82: 215.5568582
A83: 5000 | B83: 0.45 | C83: 326.79424 | D83: 252.4568343 | E83: 203.004672 | F83: 172.4454865
A84: 5000 | B84: 0.5 | C84: 261.435392 | D84: 201.9654675 | E84: 162.4037376 | F84: 137.9563892
A85: 5000 | B85: 0.5 | C85: 261.435392 | D85: 201.9654675 | E85: 162.4037376 | F85: 137.9563892
A86: 10000 | B86: 0 | C86: 1048.612582 | D86: 941.3570291 | E86: 859.1952109 | F86: 785.8653382
A87: 10000 | B87: 0.05 | C87: 873.8438182 | D87: 784.4641909 | E87: 715.9960091 | F87: 654.8877818
A88: 10000 | B88: 0.1 | C88: 728.2031818 | D88: 653.7201591 | E88: 596.6633409 | F88: 545.7398182
A89: 10000 | B89: 0.15 | C89: 706.8286364 | D89: 634.7209864 | E89: 571.9562045 | F89: 519.6762273
A90: 10000 | B90: 0.2 | C90: 689.3422727 | D90: 615.6484136 | E90: 549.1119091 | F90: 494.6152273
A91: 10000 | B91: 0.25 | C91: 676.4713636 | D91: 596.3692045 | E91: 525.0280909 | F91: 467.2018182
A92: 10000 | B92: 0.3 | C92: 668.7222727 | D92: 576.8750955 | E92: 503.4388409 | F92: 446.125
A93: 10000 | B93: 0.35 | C93: 534.9778182 | D93: 461.5000764 | E93: 402.7510727 | F93: 356.9
A94: 10000 | B94: 0.4 | C94: 427.9822545 | D94: 369.2000611 | E94: 322.2008582 | F94: 285.52
A95: 10000 | B95: 0.45 | C95: 342.3858036 | D95: 295.3600489 | E95: 257.7606865 | F95: 228.416
A96: 10000 | B96: 0.5 | C96: 273.9086429 | D96: 236.2880391 | E96: 206.2085492 | F96: 182.7328
A97: 10000 | B97: 0.5 | C97: 273.9086429 | D97: 236.2880391 | E97: 206.2085492 | F97: 182.7328
A98: 15000 | B98: 0 | C98: 1048.041818 | D98: 927.1501855 | E98: 869.0037382 | F98: 801.6221455
A99: 15000 | B99: 0.05 | C99: 873.3681818 | D99: 772.6251545 | E99: 724.1697818 | F99: 668.0184545
A100: 15000 | B100: 0.1 | C100: 727.8068182 | D100: 643.8542955 | E100: 603.4748182 | F100: 556.6820455
A101: 15000 | B101: 0.15 | C101: 690.6427273 | D101: 625.2005909 | E101: 579.2735682 | F101: 533.1294091
A102: 15000 | B102: 0.2 | C102: 676.7154545 | D102: 606.3714909 | E102: 555.1450455 | F102: 506.0138636
A103: 15000 | B103: 0.25 | C103: 666.9922727 | D103: 588.3356091 | E103: 533.7303409 | F103: 482.8204091
A104: 15000 | B104: 0.3 | C104: 638.7513636 | D104: 571.0218409 | E104: 510.4268409 | F104: 460.2027273
A105: 15000 | B105: 0.35 | C105: 511.0010909 | D105: 456.8174727 | E105: 408.3414727 | F105: 368.1621818
A106: 15000 | B106: 0.4 | C106: 408.8008727 | D106: 365.4539782 | E106: 326.6731782 | F106: 294.5297455
A107: 15000 | B107: 0.45 | C107: 327.0406982 | D107: 292.3631825 | E107: 261.3385425 | F107: 235.6237964
A108: 15000 | B108: 0.5 | C108: 261.6325585 | D108: 233.890546 | E108: 209.070834 | F108: 188.4990371
A109: 15000 | B109: 0.5 | C109: 261.6325585 | D109: 233.890546 | E109: 209.070834 | F109: 188.4990371
